[Event "Early-Titled-Tuesday-Blitz-May-07-2024"]
[Site "Chess.com"]
[Date "2024.05.07"]
[Round "1"]
[White "1mbl4"]
[Black "Chessbard1972"]
[Result "1-0"]
[WhiteElo "2637"]
[BlackElo "2340"]
[TimeControl "180+1"]
[EndTime "8:05:05 PDT"]
[Termination "1mbl4 won by checkmate"]

1. d4 {[%clk 0:03:00.9]} 1... Nf6 {[%clk 0:02:57.5]} 2. Bf4 {[%clk 0:03:01.2]}
2... d5 {[%clk 0:02:56.5]} 3. Nc3 {[%clk 0:03:01.6]} 3... Bf5 {[%clk 0:02:54.7]}
4. f3 {[%clk 0:03:00.8]} 4... e6 {[%clk 0:02:50.4]} 5. g4 {[%clk 0:03:00.7]}
5... Bg6 {[%clk 0:02:49.7]} 6. h4 {[%clk 0:02:59.9]} 6... h6 {[%clk 0:02:46.9]}
7. h5 {[%clk 0:02:58.6]} 7... Bh7 {[%clk 0:02:46.6]} 8. e3 {[%clk 0:02:59.5]}
8... Bb4 {[%clk 0:02:46]} 9. Bd3 {[%clk 0:02:57.5]} 9... Bxc3+ {[%clk
0:02:43.6]} 10. bxc3 {[%clk 0:02:57.2]} 10... Bxd3 {[%clk 0:02:42.9]} 11. cxd3
{[%clk 0:02:56.6]} 11... Nbd7 {[%clk 0:02:43]} 12. Rb1 {[%clk 0:02:51.7]} 12...
b6 {[%clk 0:02:42.1]} 13. Ne2 {[%clk 0:02:49.8]} 13... c5 {[%clk 0:02:34.5]} 14.
Qa4 {[%clk 0:02:40.7]} 14... O-O {[%clk 0:02:31.9]} 15. g5 {[%clk 0:02:36.1]}
15... hxg5 {[%clk 0:02:31.6]} 16. Bxg5 {[%clk 0:02:37]} 16... Qc7 {[%clk
0:02:30.9]} 17. h6 {[%clk 0:02:33.1]} 17... Nh7 {[%clk 0:02:30]} 18. hxg7 {[%clk
0:02:32.1]} 18... Rfe8 {[%clk 0:02:28.1]} 19. Bf4 {[%clk 0:02:23.2]} 19... e5
{[%clk 0:02:19]} 20. dxe5 {[%clk 0:02:19.1]} 20... Nxe5 {[%clk 0:02:18.7]} 21.
Bxe5 {[%clk 0:02:11]} 21... Qxe5 {[%clk 0:02:13.7]} 22. Qh4 {[%clk 0:02:10.7]}
22... Qf5 {[%clk 0:01:55.9]} 23. Kd2 {[%clk 0:02:09.9]} 23... c4 {[%clk
0:01:49.9]} 24. e4 {[%clk 0:02:02]} 24... dxe4 {[%clk 0:01:48.7]} 25. fxe4
{[%clk 0:01:58]} 25... Qg5+ {[%clk 0:01:33]} 26. Qxg5 {[%clk 0:01:57.6]} 26...
Nxg5 {[%clk 0:01:33.1]} 27. Ng3 {[%clk 0:01:42.9]} 27... Kxg7 {[%clk 0:01:29.7]}
28. Nf5+ {[%clk 0:01:39.6]} 28... Kf6 {[%clk 0:01:22.4]} 29. Rh6+ {[%clk
0:01:35.6]} 29... Ke5 {[%clk 0:01:20.1]} 30. d4+ {[%clk 0:01:28.9]} 30... Kf4
{[%clk 0:01:14.3]} 31. Rh4+ {[%clk 0:01:28.1]} 31... Kf3 {[%clk 0:01:12.2]} 32.
Rf1+ {[%clk 0:01:24.3]} 32... Kg2 {[%clk 0:01:10.1]} 33. Ne3+ {[%clk 0:01:24.5]}
33... Kg3 {[%clk 0:01:09.2]} 34. Rg4+ {[%clk 0:01:24.8]} 34... Kh2 {[%clk
0:01:01]} 35. Rg2+ {[%clk 0:01:24.7]} 35... Kh3 {[%clk 0:01:00.7]} 36. Rh1#
{[%clk 0:01:25.6]} 1-0

[Event "Early-Titled-Tuesday-Blitz-May-07-2024"]
[Site "Chess.com"]
[Date "2024.05.07"]
[Round "1"]
[White "average_trans"]
[Black "Vse_po_kaify"]
[Result "0-1"]
[WhiteElo "2332"]
[BlackElo "2630"]
[TimeControl "180+1"]
[EndTime "8:05:08 PDT"]
[Termination "Vse_po_kaify won by resignation"]

1. b3 {[%clk 0:02:53.6]} 1... c5 {[%clk 0:02:59.8]} 2. Bb2 {[%clk 0:02:53.4]}
2... Nc6 {[%clk 0:03:00.3]} 3. Nf3 {[%clk 0:02:53.9]} 3... d6 {[%clk 0:02:59.9]}
4. g3 {[%clk 0:02:53.4]} 4... e5 {[%clk 0:02:59.6]} 5. d3 {[%clk 0:02:51.4]}
5... g6 {[%clk 0:03:00.1]} 6. Bg2 {[%clk 0:02:49.6]} 6... Bg7 {[%clk 0:03:00.6]}
7. O-O {[%clk 0:02:45.4]} 7... Nge7 {[%clk 0:03:01.2]} 8. h3 {[%clk 0:02:39.6]}
8... O-O {[%clk 0:03:01.8]} 9. Nbd2 {[%clk 0:02:37.5]} 9... e4 {[%clk 0:02:57]}
10. Bxg7 {[%clk 0:02:34.5]} 10... exf3 {[%clk 0:02:57]} 11. Bxf8 {[%clk
0:02:34.5]} 11... fxg2 {[%clk 0:02:56.6]} 12. Kxg2 {[%clk 0:02:31.1]} 12... Qxf8
{[%clk 0:02:56.4]} 13. e4 {[%clk 0:02:24]} 13... Be6 {[%clk 0:02:52.7]} 14. f4
{[%clk 0:02:22.4]} 14... Qg7 {[%clk 0:02:52.6]} 15. Nf3 {[%clk 0:02:16.1]} 15...
d5 {[%clk 0:02:46.5]} 16. Qe2 {[%clk 0:02:10]} 16... Nd4 {[%clk 0:02:44.7]} 17.
Nxd4 {[%clk 0:02:10.2]} 17... Qxd4 {[%clk 0:02:45]} 18. e5 {[%clk 0:02:05.9]}
18... Re8 {[%clk 0:02:42.6]} 19. Rae1 {[%clk 0:02:02.9]} 19... c4 {[%clk
0:02:41.1]} 20. g4 {[%clk 0:01:57.4]} 20... Bd7 {[%clk 0:02:28.6]} 21. Rf3
{[%clk 0:01:43.8]} 21... Bc6 {[%clk 0:02:25.2]} 22. f5 {[%clk 0:01:22.6]} 22...
cxd3 {[%clk 0:02:24.2]} 23. cxd3 {[%clk 0:01:21.5]} 23... Qc3 {[%clk 0:02:17.2]}
24. d4 {[%clk 0:01:19.7]} 24... Qxd4 {[%clk 0:02:14.9]} 25. e6 {[%clk 0:01:20]}
25... f6 {[%clk 0:01:45.9]} 26. fxg6 {[%clk 0:00:58.4]} 26... Nxg6 {[%clk
0:01:44.8]} 27. Ref1 {[%clk 0:00:56.2]} 27... Nh4+ {[%clk 0:01:35.8]} 28. Kg3
{[%clk 0:00:47]} 28... Nxf3 {[%clk 0:01:35.9]} 29. Rxf3 {[%clk 0:00:47.7]} 29...
Qe5+ {[%clk 0:01:35.9]} 30. Qxe5 {[%clk 0:00:48.4]} 30... fxe5 {[%clk
0:01:36.6]} 0-1

[Event "Early-Titled-Tuesday-Blitz-May-07-2024"]
[Site "Chess.com"]
[Date "2024.05.07"]
[Round "1"]
[White "luggevoila"]
[Black "Zq1"]
[Result "0-1"]
[WhiteElo "2317"]
[BlackElo "2621"]
[TimeControl "180+1"]
[EndTime "8:05:15 PDT"]
[Termination "Zq1 won by resignation"]

1. e4 {[%clk 0:03:00.9]} 1... c5 {[%clk 0:02:57.9]} 2. Nc3 {[%clk 0:03:00]} 2...
g6 {[%clk 0:02:54.7]} 3. d4 {[%clk 0:02:55.2]} 3... cxd4 {[%clk 0:02:53.5]} 4.
Qxd4 {[%clk 0:02:55.4]} 4... Nf6 {[%clk 0:02:53.6]} 5. Nf3 {[%clk 0:02:49.3]}
5... Nc6 {[%clk 0:02:52.2]} 6. Qd3 {[%clk 0:02:49.4]} 6... d6 {[%clk 0:02:51.5]}
7. Nd5 {[%clk 0:02:46.7]} 7... Bg7 {[%clk 0:02:50.6]} 8. c3 {[%clk 0:02:46.1]}
8... O-O {[%clk 0:02:46.1]} 9. Bg5 {[%clk 0:02:43.7]} 9... Nxd5 {[%clk
0:02:39.1]} 10. exd5 {[%clk 0:02:43.2]} 10... Bf5 {[%clk 0:02:38.7]} 11. Qd2
{[%clk 0:02:39.7]} 11... Ne5 {[%clk 0:02:36.7]} 12. Nxe5 {[%clk 0:02:38.9]}
12... dxe5 {[%clk 0:02:36.2]} 13. Be2 {[%clk 0:02:33.6]} 13... Qd6 {[%clk
0:02:32]} 14. O-O {[%clk 0:02:30.7]} 14... e6 {[%clk 0:02:25.6]} 15. c4 {[%clk
0:02:22.6]} 15... exd5 {[%clk 0:02:23.1]} 16. cxd5 {[%clk 0:02:21.9]} 16... Rac8
{[%clk 0:02:15.2]} 17. Rac1 {[%clk 0:02:17.7]} 17... Be4 {[%clk 0:02:11.3]} 18.
Rxc8 {[%clk 0:02:08.5]} 18... Rxc8 {[%clk 0:02:10.2]} 19. f3 {[%clk 0:01:48.7]}
19... Bf5 {[%clk 0:01:57.2]} 20. Rd1 {[%clk 0:01:44]} 20... Rc2 {[%clk
0:01:52.6]} 21. Qe3 {[%clk 0:01:35.7]} 21... Rxb2 {[%clk 0:01:49.8]} 22. Bc4
{[%clk 0:01:09.3]} 22... h6 {[%clk 0:01:43]} 23. Bh4 {[%clk 0:00:58.5]} 23...
Rb4 {[%clk 0:01:35.8]} 24. Rc1 {[%clk 0:00:46.9]} 24... b5 {[%clk 0:01:30.5]}
25. Be1 {[%clk 0:00:20.4]} 25... Rxc4 {[%clk 0:01:28.9]} 0-1

[Event "Early-Titled-Tuesday-Blitz-May-07-2024"]
[Site "Chess.com"]
[Date "2024.05.07"]
[Round "1"]
[White "itsdsyr"]
[Black "Mikasinski"]
[Result "0-1"]
[WhiteElo "2350"]
[BlackElo "2647"]
[TimeControl "180+1"]
[EndTime "8:05:17 PDT"]
[Termination "Mikasinski won by resignation"]

1. e4 {[%clk 0:02:56.2]} 1... c5 {[%clk 0:02:59.4]} 2. Nf3 {[%clk 0:02:56]} 2...
d6 {[%clk 0:02:59.2]} 3. d4 {[%clk 0:02:56]} 3... cxd4 {[%clk 0:03:00.1]} 4.
Nxd4 {[%clk 0:02:56.3]} 4... Nf6 {[%clk 0:03:00.6]} 5. Nc3 {[%clk 0:02:55]} 5...
a6 {[%clk 0:03:00.6]} 6. Be2 {[%clk 0:02:54.4]} 6... e5 {[%clk 0:03:00.5]} 7.
Nb3 {[%clk 0:02:52.7]} 7... Be7 {[%clk 0:03:00.2]} 8. O-O {[%clk 0:02:51.4]}
8... O-O {[%clk 0:02:59.5]} 9. a4 {[%clk 0:02:51.7]} 9... Be6 {[%clk 0:02:59.2]}
10. f4 {[%clk 0:02:48.4]} 10... exf4 {[%clk 0:02:55.8]} 11. Bxf4 {[%clk
0:02:47.8]} 11... Nc6 {[%clk 0:02:56.4]} 12. Kh1 {[%clk 0:02:44.5]} 12... d5
{[%clk 0:02:54.4]} 13. Bd3 {[%clk 0:02:11.1]} 13... d4 {[%clk 0:02:39.7]} 14.
Ne2 {[%clk 0:02:06.6]} 14... Ng4 {[%clk 0:02:38.5]} 15. Qe1 {[%clk 0:01:57.3]}
15... Bh4 {[%clk 0:02:26.1]} 16. Qd2 {[%clk 0:01:54.9]} 16... Nf2+ {[%clk
0:02:05.8]} 17. Kg1 {[%clk 0:01:50.6]} 17... Nxd3 {[%clk 0:02:02.6]} 18. Qxd3
{[%clk 0:01:51.5]} 18... Nb4 {[%clk 0:01:59]} 19. Qd2 {[%clk 0:01:49]} 19...
Nxc2 {[%clk 0:01:56.2]} 20. Qxc2 {[%clk 0:01:41.8]} 20... d3 {[%clk 0:01:55.9]}
21. Qc3 {[%clk 0:01:38.5]} 21... dxe2 {[%clk 0:01:53.4]} 22. Rfe1 {[%clk
0:01:33.1]} 22... Qb6+ {[%clk 0:01:51]} 23. Be3 {[%clk 0:01:29.2]} 23... Qxb3
{[%clk 0:01:48.8]} 24. Qxb3 {[%clk 0:01:30.1]} 24... Bxb3 {[%clk 0:01:49.2]} 25.
g3 {[%clk 0:01:31]} 25... Bf6 {[%clk 0:01:48.8]} 26. Rxe2 {[%clk 0:01:31.3]}
26... Rfe8 {[%clk 0:01:49.2]} 27. Bf4 {[%clk 0:01:30.3]} 27... Rac8 {[%clk
0:01:45.4]} 28. e5 {[%clk 0:01:28.9]} 28... Be7 {[%clk 0:01:42.8]} 29. Rae1
{[%clk 0:01:23.8]} 29... Be6 {[%clk 0:01:42.7]} 30. Bd2 {[%clk 0:01:21.1]} 30...
Rc4 {[%clk 0:01:41.7]} 31. a5 {[%clk 0:01:20]} 31... h5 {[%clk 0:01:40.8]} 32.
Bc3 {[%clk 0:01:19.8]} 32... Rd8 {[%clk 0:01:40.4]} 33. h4 {[%clk 0:01:00]}
33... Bc5+ {[%clk 0:01:38.1]} 34. Kh2 {[%clk 0:00:59]} 34... Bb4 {[%clk
0:01:36.7]} 35. Bxb4 {[%clk 0:00:57.4]} 35... Rxb4 {[%clk 0:01:37.1]} 36. Rc1
{[%clk 0:00:58]} 36... Rc4 {[%clk 0:01:35.3]} 37. Rce1 {[%clk 0:00:57]} 37...
Rc5 {[%clk 0:01:34.8]} 0-1

[Event "Early-Titled-Tuesday-Blitz-May-07-2024"]
[Site "Chess.com"]
[Date "2024.05.07"]
[Round "1"]
[White "campochess"]
[Black "HajiyevKanan"]
[Result "0-1"]
[WhiteElo "2149"]
[BlackElo "2568"]
[TimeControl "180+1"]
[EndTime "8:05:22 PDT"]
[Termination "HajiyevKanan won by resignation"]

1. d4 {[%clk 0:02:59.2]} 1... d5 {[%clk 0:02:59.7]} 2. Bg5 {[%clk 0:02:58.8]}
2... c5 {[%clk 0:02:59.9]} 3. dxc5 {[%clk 0:02:57.9]} 3... Nc6 {[%clk
0:03:00.2]} 4. Nf3 {[%clk 0:02:56.4]} 4... h6 {[%clk 0:03:00.8]} 5. Bd2 {[%clk
0:02:54.8]} 5... e5 {[%clk 0:03:00]} 6. b4 {[%clk 0:02:54.7]} 6... e4 {[%clk
0:02:59.5]} 7. b5 {[%clk 0:02:48.1]} 7... exf3 {[%clk 0:02:50.3]} 8. bxc6 {[%clk
0:02:47.2]} 8... fxg2 {[%clk 0:02:25.7]} 9. Bxg2 {[%clk 0:02:44.6]} 9... bxc6
{[%clk 0:02:25.4]} 10. c4 {[%clk 0:02:44.5]} 10... Bxc5 {[%clk 0:02:20]} 11. O-O
{[%clk 0:02:44.3]} 11... Nf6 {[%clk 0:02:10.9]} 12. cxd5 {[%clk 0:02:43.2]}
12... cxd5 {[%clk 0:02:09.6]} 13. Nc3 {[%clk 0:02:43.1]} 13... O-O {[%clk
0:02:09.1]} 14. Rc1 {[%clk 0:02:41.5]} 14... Ba3 {[%clk 0:02:06.5]} 15. Rc2
{[%clk 0:02:40.9]} 15... Bf5 {[%clk 0:02:06.4]} 16. Bf4 {[%clk 0:02:27.5]} 16...
Bxc2 {[%clk 0:02:00.4]} 17. Qxc2 {[%clk 0:02:27.6]} 17... Rc8 {[%clk 0:02:00.6]}
18. Qb3 {[%clk 0:02:27]} 18... Qa5 {[%clk 0:01:57.7]} 19. Nxd5 {[%clk
0:02:22.1]} 19... Nxd5 {[%clk 0:01:57.6]} 20. Bxd5 {[%clk 0:02:21.2]} 20... Rc3
{[%clk 0:01:52.7]} 21. Qb7 {[%clk 0:02:17.4]} 21... Qb4 {[%clk 0:01:38.7]} 22.
Be3 {[%clk 0:02:06.7]} 22... Qxb7 {[%clk 0:01:16.6]} 23. Bxb7 {[%clk 0:02:06.5]}
23... Bc5 {[%clk 0:01:14.3]} 24. Rc1 {[%clk 0:01:56.8]} 24... Rxc1+ {[%clk
0:01:12.3]} 25. Bxc1 {[%clk 0:01:55.5]} 25... Rb8 {[%clk 0:01:12.8]} 26. Be4
{[%clk 0:01:53.2]} 26... Rb4 {[%clk 0:01:08.4]} 27. Bd3 {[%clk 0:01:50]} 27...
Ra4 {[%clk 0:01:08.6]} 28. Bd2 {[%clk 0:01:44.6]} 28... Rxa2 {[%clk 0:01:07.5]}
29. Bc3 {[%clk 0:01:44.7]} 29... a5 {[%clk 0:01:04.2]} 30. Kg2 {[%clk
0:01:44.7]} 30... a4 {[%clk 0:01:03.2]} 31. Kf3 {[%clk 0:01:44.8]} 31... a3
{[%clk 0:01:02.9]} 32. h4 {[%clk 0:01:36.9]} 32... Be7 {[%clk 0:01:02.3]} 33. h5
{[%clk 0:01:27.7]} 33... Bf6 {[%clk 0:01:02.1]} 34. Bb4 {[%clk 0:01:24.9]} 34...
Ra1 {[%clk 0:01:00.3]} 35. e4 {[%clk 0:01:23.2]} 35... a2 {[%clk 0:00:58.3]} 36.
Bc4 {[%clk 0:01:20.7]} 36... Rb1 {[%clk 0:00:54]} 0-1

[Event "Early-Titled-Tuesday-Blitz-May-07-2024"]
[Site "Chess.com"]
[Date "2024.05.07"]
[Round "1"]
[White "Aygehovit1992"]
[Black "ejam94"]
[Result "1-0"]
[WhiteElo "2850"]
[BlackElo "2478"]
[TimeControl "180+1"]
[EndTime "8:05:23 PDT"]
[Termination "Aygehovit1992 won by resignation"]

1. e4 {[%clk 0:03:00.9]} 1... c5 {[%clk 0:02:55.4]} 2. Nf3 {[%clk 0:03:00.7]}
2... e6 {[%clk 0:02:54]} 3. d4 {[%clk 0:03:00.7]} 3... cxd4 {[%clk 0:02:54.1]}
4. Nxd4 {[%clk 0:03:01.6]} 4... a6 {[%clk 0:02:54.2]} 5. Nc3 {[%clk 0:03:02]}
5... b5 {[%clk 0:02:54]} 6. Bd3 {[%clk 0:03:02.2]} 6... Bb7 {[%clk 0:02:53.4]}
7. O-O {[%clk 0:03:00.8]} 7... Nc6 {[%clk 0:02:52.3]} 8. Nxc6 {[%clk 0:03:01.1]}
8... Bxc6 {[%clk 0:02:53.2]} 9. Re1 {[%clk 0:03:01.8]} 9... Nf6 {[%clk
0:02:46.5]} 10. e5 {[%clk 0:03:00.8]} 10... Nd5 {[%clk 0:02:45.2]} 11. Nxd5
{[%clk 0:02:59.8]} 11... Bxd5 {[%clk 0:02:44.8]} 12. Qg4 {[%clk 0:03:00.3]}
12... h5 {[%clk 0:02:34]} 13. Qf4 {[%clk 0:03:00]} 13... Be7 {[%clk 0:02:29.6]}
14. a4 {[%clk 0:02:58.4]} 14... b4 {[%clk 0:02:14.4]} 15. a5 {[%clk 0:02:58.2]}
15... g5 {[%clk 0:02:13.3]} 16. Qd4 {[%clk 0:02:58]} 16... Qc7 {[%clk
0:02:11.6]} 17. Qb6 {[%clk 0:02:51.2]} 17... Qxb6 {[%clk 0:02:03.4]} 18. axb6
{[%clk 0:02:51.1]} 18... a5 {[%clk 0:02:04.3]} 19. c4 {[%clk 0:02:41.5]} 19...
Bc6 {[%clk 0:01:57.5]} 20. Be3 {[%clk 0:02:34.2]} 20... a4 {[%clk 0:01:57.6]}
21. c5 {[%clk 0:02:31.5]} 21... Ra5 {[%clk 0:01:46.5]} 22. Rec1 {[%clk
0:02:31.3]} 22... O-O {[%clk 0:01:38.9]} 23. Kf1 {[%clk 0:02:08.8]} 23... Rc8
{[%clk 0:01:38.2]} 24. Be2 {[%clk 0:02:08.7]} 24... Bb7 {[%clk 0:01:19.7]} 25.
Bxh5 {[%clk 0:02:05.8]} 25... a3 {[%clk 0:01:02.1]} 26. bxa3 {[%clk 0:02:05.8]}
26... bxa3 {[%clk 0:01:02]} 27. Bf3 {[%clk 0:02:04.6]} 27... Bxf3 {[%clk
0:00:56.2]} 28. gxf3 {[%clk 0:02:05.5]} 28... Bxc5 {[%clk 0:00:55.1]} 29. b7
{[%clk 0:02:02.1]} 29... Rb8 {[%clk 0:00:49]} 30. Rxc5 {[%clk 0:02:01.6]} 30...
Rxc5 {[%clk 0:00:47.5]} 31. Bxc5 {[%clk 0:02:02.5]} 31... Rxb7 {[%clk
0:00:47.4]} 32. Rxa3 {[%clk 0:02:02.5]} 32... Rb5 {[%clk 0:00:47.9]} 33. Bd6
{[%clk 0:02:00.5]} 33... Kg7 {[%clk 0:00:48.1]} 34. Ra7 {[%clk 0:02:00]} 34...
Kg6 {[%clk 0:00:46.3]} 35. Rxd7 {[%clk 0:01:59.8]} 35... Rb3 {[%clk 0:00:47.2]}
36. Kg2 {[%clk 0:01:59.6]} 36... Rd3 {[%clk 0:00:46.1]} 37. h3 {[%clk
0:01:58.3]} 37... Rd1 {[%clk 0:00:46.1]} 38. Rd8 {[%clk 0:01:57.6]} 38... Rb1
{[%clk 0:00:44.7]} 39. Be7 {[%clk 0:01:57.6]} 39... Rb7 {[%clk 0:00:43]} 40. Bf6
{[%clk 0:01:55.9]} 40... Rb4 {[%clk 0:00:39.7]} 41. Rg8+ {[%clk 0:01:55.8]}
41... Kf5 {[%clk 0:00:40.2]} 42. Rxg5+ {[%clk 0:01:56.1]} 42... Kf4 {[%clk
0:00:38.4]} 43. Rg4+ {[%clk 0:01:56.4]} 43... Kf5 {[%clk 0:00:39.1]} 44. Rxb4
{[%clk 0:01:57.1]} 1-0

[Event "Early-Titled-Tuesday-Blitz-May-07-2024"]
[Site "Chess.com"]
[Date "2024.05.07"]
[Round "1"]
[White "karinachess1"]
[Black "Sofia_Blokhin"]
[Result "1-0"]
[WhiteElo "2612"]
[BlackElo "2277"]
[TimeControl "180+1"]
[EndTime "8:05:23 PDT"]
[Termination "karinachess1 won by checkmate"]

1. d4 {[%clk 0:03:00.9]} 1... f5 {[%clk 0:02:59.4]} 2. Nf3 {[%clk 0:03:00.4]}
2... Nf6 {[%clk 0:02:59]} 3. g3 {[%clk 0:03:01]} 3... g6 {[%clk 0:02:59]} 4. Bg2
{[%clk 0:03:01.7]} 4... Bg7 {[%clk 0:02:59.3]} 5. O-O {[%clk 0:03:02.4]} 5...
O-O {[%clk 0:02:59.5]} 6. b3 {[%clk 0:03:03]} 6... d6 {[%clk 0:02:59.8]} 7. Bb2
{[%clk 0:03:03.7]} 7... Ne4 {[%clk 0:02:57.2]} 8. c4 {[%clk 0:03:01]} 8... c5
{[%clk 0:02:46.8]} 9. Qc1 {[%clk 0:02:57.4]} 9... cxd4 {[%clk 0:02:38.1]} 10.
Nxd4 {[%clk 0:02:55.7]} 10... e5 {[%clk 0:02:22]} 11. Nb5 {[%clk 0:02:55.7]}
11... a6 {[%clk 0:02:14.7]} 12. N5c3 {[%clk 0:02:54.8]} 12... Nxc3 {[%clk
0:02:10.1]} 13. Nxc3 {[%clk 0:02:55.7]} 13... Nc6 {[%clk 0:02:07.7]} 14. Rd1
{[%clk 0:02:53.7]} 14... Be6 {[%clk 0:01:56.4]} 15. Ba3 {[%clk 0:02:52.7]} 15...
Qa5 {[%clk 0:01:32.3]} 16. Rxd6 {[%clk 0:02:43.3]} 16... Nd4 {[%clk 0:01:22]}
17. b4 {[%clk 0:02:12.8]} 17... Qc7 {[%clk 0:01:17.9]} 18. c5 {[%clk 0:02:13]}
18... Rfe8 {[%clk 0:01:08.3]} 19. e3 {[%clk 0:02:11.4]} 19... Bf8 {[%clk
0:00:48.5]} 20. exd4 {[%clk 0:01:59.7]} 20... Bxd6 {[%clk 0:00:47.2]} 21. cxd6
{[%clk 0:02:00.6]} 21... Qxd6 {[%clk 0:00:47.5]} 22. dxe5 {[%clk 0:02:01.1]}
22... Qxe5 {[%clk 0:00:46.2]} 23. Bb2 {[%clk 0:02:01.3]} 23... Rac8 {[%clk
0:00:44.3]} 24. Qd2 {[%clk 0:01:48.6]} 24... Red8 {[%clk 0:00:43.3]} 25. Qg5
{[%clk 0:01:48.8]} 25... Qc7 {[%clk 0:00:25.1]} 26. Qf6 {[%clk 0:01:37.2]} 26...
Re8 {[%clk 0:00:21.4]} 27. Nd5 {[%clk 0:01:34.3]} 27... Qd7 {[%clk 0:00:16.1]}
28. Qh8+ {[%clk 0:01:33.6]} 28... Kf7 {[%clk 0:00:15.8]} 29. Qg7# {[%clk
0:01:34.1]} 1-0

[Event "Early-Titled-Tuesday-Blitz-May-07-2024"]
[Site "Chess.com"]
[Date "2024.05.07"]
[Round "1"]
[White "ChristopherYoo"]
[Black "2346PL"]
[Result "1-0"]
[WhiteElo "3035"]
[BlackElo "2529"]
[TimeControl "180+1"]
[EndTime "8:05:25 PDT"]
[Termination "ChristopherYoo won by resignation"]

1. e4 {[%clk 0:03:00.9]} 1... e5 {[%clk 0:03:00.1]} 2. Nf3 {[%clk 0:03:00.6]}
2... Nf6 {[%clk 0:03:00.8]} 3. Nxe5 {[%clk 0:02:57.1]} 3... Nxe4 {[%clk
0:03:01]} 4. Qe2 {[%clk 0:02:56.2]} 4... Qe7 {[%clk 0:03:01.1]} 5. Qxe4 {[%clk
0:02:55.8]} 5... d6 {[%clk 0:03:01.8]} 6. d4 {[%clk 0:02:51.9]} 6... dxe5 {[%clk
0:03:01.6]} 7. dxe5 {[%clk 0:02:51.6]} 7... Nc6 {[%clk 0:03:02]} 8. Bf4 {[%clk
0:02:21.2]} 8... g5 {[%clk 0:03:01.6]} 9. Bd2 {[%clk 0:01:54.1]} 9... Bg7 {[%clk
0:02:48.9]} 10. Nc3 {[%clk 0:01:50.4]} 10... O-O {[%clk 0:02:04.5]} 11. O-O-O
{[%clk 0:01:43.6]} 11... h6 {[%clk 0:01:40.3]} 12. Bd3 {[%clk 0:01:40.9]} 12...
Rd8 {[%clk 0:01:33.7]} 13. f4 {[%clk 0:01:29.3]} 13... gxf4 {[%clk 0:01:23.3]}
14. Bxf4 {[%clk 0:01:26.4]} 14... Be6 {[%clk 0:01:18.8]} 15. Qh7+ {[%clk
0:01:23.8]} 15... Kf8 {[%clk 0:01:19.1]} 16. Bxh6 {[%clk 0:01:23.1]} 16... Bxh6+
{[%clk 0:01:10.2]} 17. Qxh6+ {[%clk 0:01:24]} 17... Ke8 {[%clk 0:01:10.8]} 18.
Ne4 {[%clk 0:01:23.8]} 18... Qf8 {[%clk 0:01:01.7]} 19. Nf6+ {[%clk 0:01:23.5]}
19... Ke7 {[%clk 0:01:02]} 20. Qg5 {[%clk 0:01:24]} 20... Qh8 {[%clk 0:00:49.2]}
21. Bb5 {[%clk 0:01:04]} 21... Nxe5 {[%clk 0:00:39.9]} 22. Ng8+ {[%clk
0:01:01.6]} 22... Kf8 {[%clk 0:00:32.9]} 23. Rxd8+ {[%clk 0:01:01.5]} 1-0

[Event "Early-Titled-Tuesday-Blitz-May-07-2024"]
[Site "Chess.com"]
[Date "2024.05.07"]
[Round "1"]
[White "chess123456s"]
[Black "N_I_Chess"]
[Result "1-0"]
[WhiteElo "2628"]
[BlackElo "2328"]
[TimeControl "180+1"]
[EndTime "8:05:26 PDT"]
[Termination "chess123456s won by resignation"]

1. Nf3 {[%clk 0:02:57]} 1... Nf6 {[%clk 0:03:00.3]} 2. g3 {[%clk 0:02:56.2]}
2... d5 {[%clk 0:02:58.9]} 3. Bg2 {[%clk 0:02:56.1]} 3... Bf5 {[%clk 0:02:56.7]}
4. O-O {[%clk 0:02:55.7]} 4... e6 {[%clk 0:02:55]} 5. d3 {[%clk 0:02:55.5]} 5...
h6 {[%clk 0:02:52]} 6. c4 {[%clk 0:02:53.8]} 6... c6 {[%clk 0:02:49.3]} 7. Qb3
{[%clk 0:02:49.1]} 7... Qb6 {[%clk 0:02:48.4]} 8. Qc2 {[%clk 0:02:49.2]} 8...
Be7 {[%clk 0:02:14.3]} 9. Nc3 {[%clk 0:02:46.9]} 9... Nbd7 {[%clk 0:02:13.1]}
10. cxd5 {[%clk 0:02:42.4]} 10... exd5 {[%clk 0:01:45.1]} 11. e4 {[%clk
0:02:41.3]} 11... dxe4 {[%clk 0:01:42.7]} 12. dxe4 {[%clk 0:02:42.2]} 12... Be6
{[%clk 0:01:35]} 13. Be3 {[%clk 0:02:38.7]} 13... Qa6 {[%clk 0:01:24.9]} 14. Nd4
{[%clk 0:02:34.6]} 14... Bc4 {[%clk 0:00:33.6]} 15. Rfd1 {[%clk 0:02:33.5]}
15... Qa5 {[%clk 0:00:19.1]} 16. Nf5 {[%clk 0:02:29.7]} 16... Be6 {[%clk
0:00:16.1]} 17. Nxg7+ {[%clk 0:02:28.1]} 17... Kf8 {[%clk 0:00:15.9]} 18. Nxe6+
{[%clk 0:02:25]} 18... fxe6 {[%clk 0:00:15.8]} 19. a3 {[%clk 0:02:25.9]} 19...
Kf7 {[%clk 0:00:15.3]} 20. b4 {[%clk 0:02:25.7]} 20... Qc7 {[%clk 0:00:14.5]}
21. Qa2 {[%clk 0:02:21.8]} 21... Qe5 {[%clk 0:00:13.6]} 22. Bd4 {[%clk
0:02:20.9]} 22... Qh5 {[%clk 0:00:13.1]} 23. h3 {[%clk 0:02:17]} 23... Rhd8
{[%clk 0:00:12.5]} 24. Ne2 {[%clk 0:02:15.2]} 24... Nf8 {[%clk 0:00:11.7]} 25.
Nf4 {[%clk 0:02:14.5]} 25... Qg5 {[%clk 0:00:10.9]} 26. h4 {[%clk 0:02:10.3]}
26... Qg8 {[%clk 0:00:10.3]} 27. Bh3 {[%clk 0:02:08.9]} 27... Ng4 {[%clk
0:00:04.1]} 28. f3 {[%clk 0:02:00.4]} 28... Bxh4 {[%clk 0:00:03.8]} 29. Bxg4
{[%clk 0:01:58.9]} 29... Bxg3 {[%clk 0:00:01.8]} 30. Nxe6 {[%clk 0:01:56.8]}
30... Bf2+ {[%clk 0:00:01.4]} 1-0